bitfinex-derivatives/quotes_SOLF0:USTF0_20260107
["timestamp","ask_amount","ask_price","bid_price","bid_amount"]
[1767755482480,6.4272,140.12,140.05,2.20834869]
[1767755485385,6.4277,140.11,140.05,2.20834869]
[1767755487186,6.4281,140.1,140.03,10.95327265]
[1767755487679,6.4281,140.1,140.03,2.20834869]
[1767755487981,6.4281,140.1,140.03,8.63964869]
[1767755489084,6.4277,140.11,140.04,8.63914869]
[1767755491586,1.7101398,140.1,140.04,8.63914869]
[1767755491781,1.7101398,140.08,140.02,10.87848488]
[1767755492095,1.7101398,140.08,140.02,2.13356092]
[1767755492283,1.7101398,140.08,140.02,8.56536092]
[1767755492485,1.7101398,140.08,140.03,2.13356092]
[1767755493288,1.7101398,140.08,140.03,8.56486092]
[1767755493885,1.7101398,140.1,140.05,2.13356092]
[1767755495490,6.427,140.13,140.05,8.56396092]
[1767755495692,1.7101398,140.1,140.05,8.56396092]
[1767755496180,1.7101398,140.1,140.03,8.56446092]
[1767755496387,1.7101398,140.08,140.03,2.13356092]
[1767755500290,8.1392398,140.08,140.03,2.13356092]
[1767755500491,8.1392398,140.08,140.01,8.56556092]
[1767755500688,6.4291,140.08,140.02,2.13356092]
[1767755500990,8.1392398,140.08,140.02,8.56536092]
[1767755501393,1.7101398,140.08,140.03,2.13356092]
[1767755501689,6.4286,140.09,140.03,2.13356092]
[1767755503400,8.1391398,140.08,140.01,8.56566092]
[1767755503993,1.7101398,140.08,140.01,8.56566092]
[1767755504194,1.7101398,140.08,140.02,8.56526092]
[1767755505200,8.1387398,140.09,140.02,8.56526092]
[1767755506796,8.1387398,140.09,139.99,10.45506376]
[1767755506797,6.4281,140.11,140.03,2.13356092]
[1767755507702,6.4281,140.11,140.04,6.4307]
[1767755509202,84.36,140.14,140.06,8.56346092]
[1767755509203,6.4272,140.13,140.06,8.56346092]
[1767755509407,8.1373398,140.13,140.06,8.56346092]
[1767755511510,8.1373398,140.13,140.06,2.13356092]
[1767755512303,1.7101398,140.11,140.04,2.13356092]
[1767755512702,8.1378398,140.11,140.04,2.13356092]
[1767755515600,6.4277,140.11,140.04,8.56436092]
[1767755515808,6.4277,140.11,140.05,2.13356092]
[1767755517710,1.7101398,140.12,140.06,2.13356092]
[1767755517912,86.0701398,140.14,140.06,2.13356092]
[1767755518605,90.7867,140.14,140.07,2.25573571]
[1767755519210,6.4268,140.13,140.07,2.25573571]
[1767755519606,86.0701398,140.14,140.06,8.74492396]
[1767755519805,6.4277,140.11,140.05,11.00065967]
[1767755520006,1.7101398,140.12,140.05,2.25573571]
[1767755521817,6.4282,140.1,140.05,2.25573571]
[1767755522910,8.1377398,140.12,140.05,2.25573571]
[1767755523512,1.7101398,140.12,140.05,2.25573571]
[1767755523708,6.4277,140.11,140.05,2.25573571]
[1767755525622,6.4277,140.11,140.05,8.68613571]
[1767755527026,6.4277,140.11,140.05,2.25573571]
[1767755528924,6.4281,140.1,140.05,2.25573571]
[1767755537033,6.4287,140.09,140.05,2.25573571]
[1767755539936,6.4281,140.11,140.05,2.25573571]
[1767755540340,1.7101398,140.15,140.06,2.08373365]
[1767755540540,84.4,140.16,140.07,2.08373365]
[1767755540743,86.1101398,140.16,140.08,10.82865761]
[1767755541046,86.1101398,140.16,140.09,2.08373365]
[1767755542627,6.4264,140.14,140.09,2.08373365]
[1767755543443,92.5359398,140.16,140.09,2.08373365]
[1767755543636,86.1101398,140.16,140.09,2.08373365]
[1767755544646,6.4258,140.15,140.09,2.08373365]
[1767755547343,8.1359398,140.15,140.09,2.08373365]
[1767755547852,6.4263,140.14,140.09,2.08373365]
[1767755548041,6.4263,140.14,140.07,17.25795761]
[1767755552051,6.4263,140.14,140.08,2.2267514]
[1767755554149,6.4263,140.14,140.07,8.74492396]
[1767755554150,6.4268,140.13,140.07,8.74492396]
[1767755554354,6.4268,140.13,140.06,10.97167536]
[1767755555454,6.4268,140.13,140.07,2.2267514]
[1767755556257,2.67110242,140.14,140.07,2.2267514]
[1767755557351,9.09740242,140.14,140.07,2.2267514]
[1767755557857,6.4263,140.14,140.07,2.2267514]
[1767755559261,6.4263,140.14,140.08,2.2267514]
[1767755559555,90.8258,140.16,140.08,2.2267514]
[1767755559863,90.8258,140.16,140.08,10.97167536]
[1767755560156,90.8258,140.16,140.08,2.2267514]
[1767755560558,90.8258,140.16,140.08,8.6557514]
[1767755563958,90.8258,140.16,140.08,17.40067536]
[1767755567063,90.8258,140.16,140.1,2.2267514]
[1767755568363,90.8258,140.16,140.09,6.4285]
[1767755569663,6.4259,140.15,140.08,8.6557514]
[1767755575364,6.4263,140.14,140.08,2.2267514]
[1767755575566,2.67110242,140.14,140.06,2.2267514]
[1767755575765,2.67110242,140.12,140.04,10.97167536]
[1767755575966,84.38,140.11,140.04,2.2267514]
[1767755576971,84.38,140.11,140.04,10.97167536]
[1767755577172,9.09970242,140.1,140.03,8.74492396]
[1767755577572,6.4286,140.09,140.03,8.74492396]
[1767755577772,6.4286,140.09,140.02,10.97167536]
[1767755579167,6.4286,140.09,140.02,2.2267514]
[1767755580466,2.67110242,140.14,140.04,2.2267514]
[1767755580674,2.67110242,140.16,140.07,2.2267514]
[1767755580975,84.38,140.15,140.08,2.2267514]
[1767755581473,2.67110242,140.14,140.06,8.74492396]
[1767755581673,2.67110242,140.14,140.05,10.90339001]
[1767755582666,6.4272,140.12,140.05,10.90339001]
[1767755583161,6.4272,140.12,140.06,2.15846605]
[1767755588378,9.09760242,140.14,140.06,2.15846605]
[1767755588880,9.09760242,140.14,140.06,8.58836605]
[1767755593389,9.09760242,140.14,140.06,2.15846605]
[1767755595190,9.09760242,140.14,140.07,2.17794439]
[1767755597884,6.4265,140.14,140.07,2.17794439]
[1767755603405,6.4265,140.14,140.08,2.17794439]
[1767755614516,8.13650359,140.13,140.07,8.74492396]
[1767755614715,8.13650359,140.13,140.06,10.85021221]
[1767755614909,6.4267,140.13,140.06,10.85021221]
[1767755615214,8.13650359,140.13,140.07,2.10528825]
[1767755615414,8.13650359,140.13,140.07,10.85021221]
[1767755616008,6.4263,140.14,140.08,2.10528825]
[1767755616313,6.4263,140.14,140.08,10.85021221]
[1767755618114,6.4263,140.14,140.08,2.10528825]
[1767755619016,1.70980359,140.13,140.08,2.10528825]
[1767755622122,1.70980359,140.13,140.07,15.17432396]
[1767755622422,6.4268,140.13,140.07,2.10528825]
[1767755623122,6.4268,140.13,140.07,10.85021221]
[1767755623421,8.13700359,140.12,140.05,10.85021221]
[1767755624117,8.13700359,140.12,140.06,8.74492396]
[1767755624318,8.13700359,140.12,140.06,10.85021221]
[1767755627323,8.13700359,140.12,140.06,2.10528825]
[1767755629425,1.70980359,140.1,140.05,8.74492396]
[1767755629617,1.70980359,140.08,140.05,8.74492396]
[1767755630024,1.70980359,140.09,140.05,8.74492396]
[1767755632327,1.70980359,140.09,140.04,10.85021221]
[1767755634532,1.70980359,140.11,140.05,2.10528825]
[1767755634837,1.70980359,140.12,140.06,2.10528825]
[1767755635022,1.70980359,140.12,140.07,2.10528825]
[1767755635331,1.70980359,140.12,140.08,2.10528825]
[1767755635730,84.38,140.13,140.08,2.10528825]
[1767755640132,86.08980359,140.13,140.08,2.10528825]
[1767755646737,84.38,140.13,140.08,2.10528825]
[1767755647040,84.38,140.13,140.09,2.13305437]
[1767755647634,84.38,140.13,140.09,8.56155437]
[1767755648534,84.38,140.13,140.1,2.13305437]
[1767755648730,84.38,140.13,140.1,8.56115437]
[1767755649338,84.38,140.17,140.1,10.87797833]
[1767755649538,84.38,140.17,140.12,6.4271]
[1767755650247,84.38,140.17,140.13,6.4267]
[1767755653243,84.38,140.17,140.11,6.4275]
[1767755657250,84.38,140.17,140.1,10.87797833]
[1767755658249,84.38,140.17,140.1,2.13305437]
[1767755658542,1.70980359,140.15,140.09,8.74492396]
[1767755658737,1.70980359,140.15,140.08,10.87797833]
[1767755659342,8.13570359,140.15,140.08,10.87797833]
[1767755659648,1.70980359,140.13,140.08,10.87797833]
[1767755660134,1.70980359,140.13,140.08,2.13305437]
[1767755660450,1.70980359,140.13,140.07,15.17442396]
[1767755660841,1.70980359,140.13,140.07,8.74492396]
[1767755661053,1.70980359,140.11,140.06,2.13305437]
[1767755661250,1.70980359,140.11,140.05,8.74492396]
[1767755661448,1.70980359,140.09,140.05,8.74492396]
[1767755661750,1.70980359,140.09,140.04,17.30887833]
[1767755662844,1.70980359,140.09,140.04,8.74492396]
[1767755663048,1.70980359,140.09,140.02,17.30957833]
[1767755664854,1.70980359,140.09,140.03,2.13305437]
[1767755665149,6.4283,140.1,140.03,2.13305437]
[1767755665451,1.70980359,140.08,140.03,2.13305437]
[1767755667349,8.13890359,140.08,140.01,10.87797833]
[1767755667940,8.13890359,140.08,140.02,2.13305437]
[1767755676653,6.4291,140.08,140.02,2.13305437]
[1767755678258,6.4291,140.08,140.02,8.56485437]
[1767755678860,6.4286,140.09,140.02,8.56485437]
[1767755684273,6.4286,140.09,140.02,2.13305437]
[1767755685475,6.4291,140.08,140.02,2.13305437]
[1767755685676,2.67342545,140.1,140.02,2.13305437]
[1767755686674,9.10172545,140.1,140.02,2.13305437]
[1767755689579,6.4283,140.1,140.02,2.13305437]
[1767755691081,6.4287,140.09,140.03,2.20755778]
[1767755691678,184.3366,140.13,140.04,2.20755778]
[1767755692083,84.36,140.13,140.04,2.20755778]
[1767755693684,6.4281,140.1,140.04,2.20755778]
[1767755701290,6.4281,140.1,140.02,17.38428174]
[1767755702092,2.67342545,140.1,140.01,8.74492396]
[1767755702291,2.67342545,140.1,139.98,10.84229181]
[1767755702292,2.67342545,140.06,139.98,10.84229181]
[1767755702491,2.67342545,140.06,139.98,2.09736785]
[1767755703694,6.4309,140.04,139.98,2.09736785]
[1767755704194,102.70002545,140.06,139.97,10.84229181]
[1767755704389,2.67342545,140.04,139.97,10.84229181]
[1767755704890,6.4313,140.04,139.98,1.91204524]
[1767755706893,102.67072545,140.1,139.99,1.91204524]
[1767755707092,187.07072545,140.1,140.0,1.91204524]
[1767755708594,6.4295,140.07,140.0,1.91204524]
[1767755709595,187.07072545,140.1,139.99,8.74492396]
[1767755709596,6.4304,140.05,139.99,8.74492396]
[1767755709798,6.4304,140.05,139.98,10.6569692]
[1767755710690,6.4304,140.05,139.98,1.91204524]
[1767755711197,2.67342545,140.08,139.99,1.91204524]
[1767755712195,2.67342545,140.08,140.0,1.91204524]
[1767755712593,6.43,140.06,140.0,1.91204524]
[1767755712794,2.67342545,140.08,139.98,10.6569692]
[1767755713300,6.4305,140.05,139.99,1.91204524]
[1767755716797,6.4299,140.07,139.99,1.91204524]
[1767755717001,2.67342545,140.08,140.0,1.91204524]
[1767755717299,87.07342545,140.1,140.0,1.91204524]
[1767755717496,6.4295,140.08,140.01,1.91204524]
[1767755717694,6.4295,140.08,140.02,1.91204524]
[1767755720608,90.8286,140.1,140.02,1.91204524]
[1767755721510,90.8286,140.1,140.03,1.91204524]
[1767755724211,6.4286,140.09,140.03,1.91204524]
[1767755727013,6.4292,140.08,140.03,1.91204524]
[1767755728907,6.4292,140.08,140.01,10.6569692]
[1767755730202,6.4292,140.08,140.01,1.91204524]
[1767755731319,6.4292,140.08,140.01,8.34424524]
[1767755733418,6.4295,140.07,140.0,15.17762396]
[1767755733622,2.67342545,140.08,140.0,8.74492396]
[1767755733817,2.67342545,140.08,139.99,8.74492396]
[1767755734012,2.67342545,140.08,139.98,10.61608083]
[1767755734612,184.3983,140.1,139.98,8.30475687]
[1767755734613,6.4305,140.05,139.98,8.30475687]
[1767755734909,6.4305,140.05,139.98,17.04968083]
[1767755735220,6.4305,140.05,139.99,1.87115687]
[1767755735713,2.67342545,140.06,139.99,1.87115687]
[1767755736719,9.10342545,140.06,139.99,1.87115687]
[1767755737518,6.43,140.06,139.99,1.87115687]
[1767755738617,8.14151077,140.06,140.0,1.87115687]
[1767755739019,99.9825,140.12,140.01,1.87115687]
[1767755739213,86.13151077,140.11,140.04,1.87115687]
[1767755739615,6.4282,140.1,140.04,1.87115687]
[1767755740219,8.14011077,140.09,140.04,1.87115687]
[1767755740516,1.71151077,140.05,139.98,10.61608083]
[1767755740723,1.71151077,140.05,139.98,1.87115687]
[1767755741515,1.71151077,140.05,139.99,6.4331]
[1767755741821,1.71151077,140.05,139.99,8.30425687]
[1767755742427,8.14191077,140.05,139.99,1.87115687]
[1767755742725,8.14191077,140.05,139.97,17.04988083]
[1767755743227,8.14191077,140.05,139.98,1.87115687]
[1767755744227,1.71151077,140.05,139.99,1.87115687]
[1767755744721,8.14191077,140.05,139.99,1.87115687]
[1767755746830,6.431,140.04,139.99,1.87115687]
[1767755749224,1.71151077,140.05,139.99,1.87115687]
[1767755751417,1.71151077,140.09,140.0,1.87115687]
[1767755751726,1.71151077,140.09,140.01,1.87115687]
[1767755752320,8.14011077,140.09,140.01,8.30335687]
[1767755754735,1.71151077,140.07,140.01,8.30335687]
[1767755754935,1.71151077,140.07,140.0,8.74492396]
[1767755756532,1.71151077,140.07,140.0,15.17762396]
[1767755757134,1.71151077,140.07,140.0,17.04878083]
[1767755757335,1.71151077,140.07,140.0,10.61608083]
[1767755760540,1.71151077,140.09,140.01,1.84886862]
[1767755760928,1.71151077,140.09,140.02,1.84886862]
[1767755763350,8.14011077,140.09,140.02,1.84886862]
[1767755764540,8.14011077,140.09,140.02,8.28056862]
[1767755765936,1.71151077,140.07,140.01,8.74492396]
[1767755766133,1.71151077,140.07,140.0,16.99290767]
[1767755767541,1.71151077,140.07,140.01,1.81568371]
[1767755769335,8.14101077,140.07,140.01,1.81568371]
[1767755772945,8.14101077,140.07,139.99,10.56060767]
[1767755772946,1.71151077,140.07,139.99,10.56060767]
[1767755773449,1.71151077,140.07,140.0,1.81568371]
[1767755774549,6.4299,140.06,140.0,1.81568371]
[1767755775047,1.71151077,140.07,140.0,1.81568371]
[1767755776142,6.43,140.06,140.0,1.81568371]
[1767755784148,6.4305,140.05,140.0,1.81568371]
[1767755784342,8.14201077,140.05,140.0,1.81568371]
[1767755785549,8.14201077,140.05,139.99,8.74492396]
[1767755787144,6.4309,140.04,139.99,8.74492396]
[1767755787347,6.4309,140.04,139.98,10.56060767]
[1767755787946,1.71151077,140.03,139.98,10.56060767]
[1767755789958,8.14281077,140.03,139.98,10.56060767]
[1767755792159,6.4319,140.02,139.98,1.81568371]
[1767755793061,8.14371077,140.01,139.96,10.62161912]
[1767755793259,1.71151077,140.01,139.96,1.87669516]
[1767755794361,8.14371077,140.01,139.96,1.87669516]
[1767755795258,1.71151077,140.01,139.96,1.87669516]
[1767755796156,1.71151077,140.01,139.94,15.18032396]
[1767755796157,1.71151077,140.01,139.95,1.87669516]
[1767755797162,8.14371077,140.01,139.95,1.87669516]
[1767755797362,1.71151077,139.99,139.93,10.62161912]
[1767755797559,1.71151077,139.99,139.94,1.87669516]
[1767755797759,8.14381077,140.01,139.94,1.87669516]
[1767755799170,6.4315,140.03,139.95,1.87669516]
[1767755799468,1.71151077,140.06,139.96,1.87669516]
[1767755799661,1.71151077,140.06,139.98,1.87669516]
[1767755800465,2.67563023,140.05,139.96,8.74492396]
[1767755800664,2.67563023,140.05,139.96,1.87669516]
[1767755801062,187.13373023,140.07,139.96,1.87669516]
[1767755802469,6.4313,140.03,139.97,1.87669516]
[1767755803370,6.4309,140.05,139.98,1.87669516]
[1767755804373,102.65633023,140.12,140.0,1.87669516]
[1767755804677,84.44,140.1,140.01,1.87669516]
[1767755805672,6.4294,140.08,140.01,1.87669516]
[1767755807273,84.44,140.1,140.01,1.87669516]
[1767755808280,90.8685,140.1,140.01,1.87669516]
[1767755810485,93.54413023,140.1,140.01,1.87669516]
[1767755811289,6.4287,140.09,140.01,1.87669516]
[1767755812894,6.4292,140.08,140.01,1.87669516]
[1767755821092,84.42,140.12,140.03,1.87669516]
[1767755821499,84.42,140.12,140.04,1.67920534]
[1767755821889,6.4277,140.11,140.05,1.67920534]
[1767755825598,99.9644,140.15,140.06,1.70499908]
[1767755825799,184.3844,140.15,140.06,1.70499908]
[1767755825999,84.42,140.15,140.06,1.70499908]
[1767755826304,6.4266,140.14,140.07,1.70499908]
[1767755827191,84.42,140.15,140.07,1.70499908]
[1767755827392,84.42,140.15,140.07,8.13449908]
[1767755827699,84.42,140.15,140.08,1.70499908]
[1767755828500,84.42,140.15,140.08,8.13379908]
[1767755829693,87.09563023,140.15,140.06,8.13459908]
[1767755830600,6.4263,140.14,140.06,8.13459908]
[1767755831508,6.4263,140.14,140.07,6.4294]
[1767755833206,84.42,140.15,140.05,6.43]
[1767755833413,2.67563023,140.13,140.05,6.43]
[1767755833902,84.42,140.15,140.06,1.70499908]
[1767755834409,87.09563023,140.15,140.07,6.4291]
[1767755835308,2.67563023,140.13,140.07,6.4291]
[1767755836907,2.67563023,140.13,140.06,1.70499908]
[1767755838711,87.09563023,140.15,140.06,1.70499908]
[1767755839303,93.52153023,140.15,140.06,1.70499908]
[1767755839806,2.67563023,140.13,140.04,8.13589908]
[1767755840203,9.10243023,140.13,140.04,8.13589908]
[1767755840803,2.67563023,140.13,140.04,8.13589908]
[1767755841713,6.4272,140.12,140.04,8.13589908]
[1767755844413,6.4277,140.11,140.04,8.13589908]
[1767755844617,2.67563023,140.09,140.02,1.70499908]
[1767755845613,9.10433023,140.09,140.02,1.70499908]
[1767755845811,84.38,140.1,140.02,1.70499908]
[1767755846317,90.8081,140.1,140.03,8.13619908]
[1767755848620,90.8081,140.1,140.04,1.70499908]
[1767755848821,99.9555,140.16,140.05,1.70499908]
[1767755849023,84.4,140.15,140.05,1.70499908]
[1767755849319,6.4267,140.14,140.07,1.70499908]
[1767755849710,84.4,140.15,140.07,1.70499908]
[1767755850714,90.826,140.15,140.08,8.13389908]
[1767755853323,84.4,140.15,140.08,8.13389908]
[1767755855228,84.4,140.15,140.09,6.4285]
[1767755857928,84.4,140.15,140.06,1.68842458]
[1767755858429,90.8259,140.15,140.08,6.429]
[1767755859026,2.67563023,140.14,140.08,6.429]
[1767755859527,90.8259,140.15,140.08,6.429]
[1767755860428,84.4,140.15,140.09,6.4285]
[1767755861620,84.4,140.15,140.07,6.4291]
[1767755861817,2.67563023,140.14,140.06,10.43334854]
[1767755862124,2.67563023,140.14,140.06,1.68842458]
[1767755862330,2.67563023,140.14,140.08,6.429]
[1767755862635,1.7097695,140.12,140.08,6.429]
[1767755863225,1.7097695,140.12,140.06,10.43334854]
[1767755867535,1.7097695,140.12,140.06,16.86324854]
[1767755868537,1.7097695,140.12,140.07,1.68842458]
[1767755868838,8.1370695,140.12,140.07,1.68842458]
[1767755869044,1.7097695,140.1,140.05,1.68842458]
[1767755870033,184.3615,140.15,140.04,8.74492396]
[1767755870232,1.7097695,140.11,140.05,1.68842458]
[1767755871438,1.7097695,140.11,140.05,8.11882458]
[1767755872238,1.7097695,140.11,140.05,1.68842458]
[1767755872440,1.7097695,140.11,140.04,8.74492396]
[1767755872441,1.7097695,140.09,140.04,8.74492396]
[1767755872642,1.7097695,140.09,140.03,10.43334854]
[1767755872841,1.7097695,140.09,140.03,1.68842458]
[1767755875434,6.4282,140.1,140.03,1.68842458]
[1767755875636,1.7097695,140.09,140.03,1.68842458]
[1767755878748,6.4282,140.1,140.03,1.68842458]
[1767755878946,1.7097695,140.09,140.03,1.68842458]
[1767755879646,8.1384695,140.09,140.03,1.68842458]
[1767755880241,8.1377695,140.11,140.04,1.50806814]
[1767755880436,1.7097695,140.13,140.04,1.50806814]
[1767755880643,1.7097695,140.13,140.06,1.50806814]
[1767755881544,6.4272,140.12,140.07,1.46315204]
[1767755882447,8.1365695,140.13,140.07,1.46315204]
[1767755883644,8.1365695,140.13,140.08,1.46315204]
[1767755883850,1.7097695,140.13,140.08,1.46315204]
[1767755884344,6.4263,140.14,140.08,1.46315204]
[1767755884941,1.7097695,140.15,140.08,1.46315204]
[1767755885542,84.4,140.16,140.08,1.46315204]
[1767755885744,1.7097695,140.15,140.08,1.46315204]
[1767755886053,1.7097695,140.19,140.1,1.46315204]
[1767755886847,8.1339695,140.19,140.11,1.46315204]
[1767755887052,1.7097695,140.19,140.11,1.46315204]
[1767755887244,84.38,140.21,140.11,1.46315204]
[1767755887448,1.7097695,140.2,140.11,1.46315204]
[1767755888449,1.7097695,140.2,140.13,1.46315204]
[1767755889653,1.7097695,140.2,140.13,7.88985204]
[1767755891157,8.1332695,140.2,140.13,7.88985204]
[1767755892051,8.1332695,140.2,140.13,1.46315204]
[1767755894746,1.7097695,140.2,140.14,1.46315204]
[1767755895659,1.7097695,140.2,140.14,7.88935204]
[1767755900860,1.7097695,140.2,140.15,1.46315204]
[1767755901856,84.38,140.21,140.15,1.46315204]
[1767755902046,1.7097695,140.23,140.15,1.46315204]
[1767755902047,15.70579719,140.25,140.17,1.46315204]
[1767755902362,13.99602769,140.25,140.17,1.46315204]
[1767755902562,13.99602769,140.25,140.2,1.46315204]
[1767755906266,13.99602769,140.25,140.21,1.46315204]
[1767755907260,395.06514979,140.34,140.24,1.46315204]
[1767755907261,1.7097695,140.31,140.24,1.46315204]
[1767755908259,1.24134979,140.34,140.24,1.46315204]
[1767755908466,1.7097695,140.33,140.27,1.46315204]
[1767755908763,1.7097695,140.31,140.24,1.46315204]
[1767755909154,1.7097695,140.3,140.24,1.46315204]
[1767755909668,1.7097695,140.3,140.24,7.88455204]
[1767755910163,6.4178,140.33,140.24,7.88455204]
[1767755910361,1.7097695,140.3,140.24,7.88455204]
[1767755910967,1.7097695,140.31,140.24,7.88455204]
[1767755911469,1.7097695,140.31,140.25,7.92800434]
[1767755914468,1.7097695,140.31,140.25,6.4209]
[1767755914669,1.7097695,140.31,140.22,101.41150434]
[1767755914670,1.7097695,140.3,140.23,6.4218]
[1767755915871,1.7097695,140.3,140.23,7.92890434]
[1767755917082,1.7097695,140.3,140.23,1.50710434]
[1767755917286,99.8268,140.34,140.23,1.50710434]
[1767755917287,1.7097695,140.33,140.23,1.50710434]
[1767755918580,1.7097695,140.33,140.25,1.50710434]
[1767755920185,1.7097695,140.31,140.25,1.50710434]
[1767755920889,1.7097695,140.33,140.26,1.50710434]
[1767755921994,84.3,140.34,140.26,1.50710434]
[1767755922295,1.7097695,140.33,140.26,1.50710434]
[1767755922592,6.4176,140.33,140.26,1.50710434]
[1767755924689,9.08144833,140.33,140.26,1.50710434]
[1767755925984,9.08144833,140.33,140.26,7.92780434]
[1767755926684,6.418,140.32,140.26,1.50710434]
[1767755927080,2.66384833,140.33,140.23,1.50710434]
[1767755927285,6.419,140.3,140.23,1.50710434]
[1767755927889,2.66384833,140.31,140.24,1.50710434]
[1767755929578,9.08244833,140.31,140.24,1.50710434]
[1767755930482,2.66384833,140.29,140.2,1.50710434]
[1767755930689,2.66384833,140.27,140.2,1.50710434]
[1767755930991,6.4208,140.26,140.2,1.50710434]
[1767755931290,2.66384833,140.25,140.18,1.50710434]
[1767755932084,9.08514833,140.25,140.18,1.50710434]
[1767755934096,9.08454833,140.27,140.19,1.50710434]
[1767755934291,84.28,140.28,140.19,1.50710434]
[1767755935281,2.66384833,140.29,140.22,1.50710434]
[1767755935486,6.4193,140.3,140.22,1.50710434]
[1767755936189,6.4195,140.29,140.22,1.50710434]
[1767755936381,2.66384833,140.29,140.22,1.50710434]
[1767755937697,6.42,140.28,140.22,1.50710434]
[1767755939097,6.42,140.28,140.17,8.74492396]
[1767755939395,6.42,140.28,140.2,1.45481679]
[1767755940392,6.4195,140.29,140.21,1.45481679]
[1767755940590,86.94384833,140.31,140.21,1.45481679]
[1767755940894,84.28,140.31,140.24,1.45481679]
[1767755941484,84.28,140.31,140.25,7.87581679]
[1767755941690,84.28,140.31,140.25,1.45481679]
[1767755944607,102.45184833,140.39,140.29,1.35385314]
[1767755945294,6.4155,140.38,140.29,1.35385314]
[1767755945494,2.66384833,140.37,140.29,1.35385314]
[1767755946093,2.66384833,140.35,140.27,1.35385314]
[1767755946292,1.24059748,140.4,140.28,1.35385314]
[1767755946492,2.66384833,140.38,140.28,1.35385314]
[1767755946899,84.28,140.39,140.31,6.4184]
[1767755947606,84.28,140.39,140.31,7.77225314]
[1767755950503,2.66384833,140.38,140.3,6.4187]
[1767755950897,2.66384833,140.38,140.28,1.35385314]
[1767755951508,2.66384833,140.38,140.3,1.35385314]
[1767755951807,84.28,140.39,140.3,1.35385314]
[1767755952007,90.6949,140.39,140.31,6.4184]
[1767755953198,90.6949,140.39,140.3,1.35385314]
[1767755953509,9.07914833,140.38,140.3,1.35385314]
[1767755956210,6.4158,140.37,140.3,1.35385314]
[1767755959513,90.6953,140.39,140.31,1.35385314]
[1767755960617,90.6953,140.39,140.31,7.77225314]
[1767755960915,90.6953,140.39,140.32,1.35385314]
[1767755961211,84.28,140.39,140.32,1.35385314]
[1767755961418,9.07814833,140.41,140.32,1.35385314]
[1767755961709,13.77622122,140.46,140.32,1.35385314]
[1767755961710,2.66384833,140.43,140.32,1.35385314]
[1767755961918,6.4135,140.42,140.35,7.77045314]
[1767755962719,6.4135,140.42,140.35,1.35385314]
[1767755963618,6.414,140.41,140.35,1.35385314]
[1767755963822,6.414,140.41,140.32,1.35385314]
[1767755965120,86.92384833,140.43,140.32,1.35385314]
[1767755965121,2.66384833,140.39,140.32,1.35385314]
[1767755966424,9.07874833,140.39,140.32,1.35385314]
[1767755966620,6.4149,140.39,140.32,1.35385314]
[1767755969012,6.4153,140.38,140.32,1.35385314]
[1767755969509,13.77622122,140.46,140.37,1.35385314]
[1767755970314,20.18822122,140.46,140.37,1.35385314]
[1767755971622,6.4123,140.45,140.37,1.35385314]
[1767755973625,13.77622122,140.46,140.39,1.46163304]
[1767755974523,13.77622122,140.46,140.39,6.4146]
[1767755974727,13.77622122,140.46,140.4,1.46163304]
[1767755975027,13.77622122,140.46,140.37,1.46163304]
[1767755976620,20.18812122,140.46,140.38,7.87683304]
[1767755977226,13.77622122,140.46,140.38,1.46163304]
[1767755977426,13.77622122,140.46,140.36,6.4159]
[1767755977623,13.77622122,140.46,140.36,7.87753304]
[1767755978632,6.4127,140.44,140.36,7.87753304]
[1767755979328,20.18822122,140.46,140.36,7.87753304]
[1767755979630,20.18822122,140.46,140.37,7.87733304]
[1767755979932,20.18822122,140.46,140.38,1.46163304]
[1767755981232,20.18822122,140.46,140.38,7.87683304]
[1767755982040,13.77622122,140.46,140.39,1.46163304]
[1767755982332,2.122e-05,140.46,140.4,1.46163304]
[1767755985437,2.122e-05,140.46,140.4,7.87593304]
[1767755986335,2.122e-05,140.46,140.41,1.46163304]
[1767755987632,2.122e-05,140.46,140.39,1.46163304]
[1767755988938,2.122e-05,140.46,140.42,1.46163304]
[1767755991441,2.122e-05,140.46,140.39,7.87603304]
[1767755992440,6.41172122,140.46,140.39,1.46163304]
[1767755992637,8.11339566,140.46,140.39,1.46163304]
[1767755993345,6.4121,140.45,140.39,1.46163304]
[1767755994241,1.70169566,140.46,140.4,1.46163304]
[1767755994547,6.4122,140.45,140.4,1.46163304]
[1767755994842,6.4122,140.45,140.38,1.46163304]
[1767755995432,2.122e-05,140.46,140.39,1.46163304]
[1767755996628,2.122e-05,140.46,140.36,188.16267454]
[1767755996629,2.122e-05,140.46,140.41,1.46163304]
[1767755997540,2.122e-05,140.46,140.42,6.4134]
[1767756000242,2.122e-05,140.46,140.41,1.46163304]
[1767756002647,2.122e-05,140.46,140.42,7.74701046]